[Event "27th CRO-chT 1A-Men 2018"]
[Site "Biograd"]
[Date "2018.09.13"]
[Round "6.11"]
[White "Golubovic, Boris"]
[Black "Medak, Bojan"]
[Result "1/2-1/2"]
[ECO "B08"]
[WhiteElo "2386"]
[BlackElo "2367"]
[Annotator "NA"]
[PlyCount "28"]
[EventDate "2018.09.08"]
[EventType "team-tourn"]
[EventCountry "CRO"]
[SourceTitle "playchess.com"]
[Source "ChessBase"]
[SourceQuality "1"]
[TimeControl "40/5400+30:1800+30"]

1. e4 {[%emt 0:00:30]} Nc6 {[%emt 0:00:30]} 2. Nf3 {[%emt 0:01:30]} d6 {[%emt 0:00:30]} 3. d4 {[%emt 0:00:30]} Nf6 {[%emt 0:00:00]} 4. Nc3 {[%emt 0:00:30]} g6 {[%emt 0:00:00]} 5. d5 {[%emt 0:09:30]} Nb8 {[%emt 0:00:30]} 6. Be2 {[%emt 0:00:00]} Bg7 {[%emt 0:00:00]} 7. O-O {[%emt 0:00:00]} O-O {[%emt 0:01:00]} 8. Be3 {[%emt 0:02:30]} c6 {[%emt 0:02:30]} 9. a4 {[%emt 0:01:30]} b6 {[%emt 0:08:30]} 10. Nd2 {[%emt 0:24:30]} Bb7 {[%emt 0:06:30]} 11. Nc4 {[%emt 0:04:30]} Nxe4 {[%emt 0:12:30]} 12. Nxe4 {[%emt 0:02:30]} cxd5 {[%emt 0:00:30]} 13. Ncxd6 {[%emt 0:02:30]} (13. Nexd6 $5 exd6 14. Bf3 $11) 13... exd6 {[%emt 0:02:30]} 14. Nc3 $1 {[%emt 0:01:30]} Nd7 $11 {[%emt 0:04:30]} 1/2-1/2

[Event "27th CRO-chT 1A-Men 2018"]
[Site "Biograd"]
[Date "2018.09.13"]
[Round "6.28"]
[White "Bender, Ivan"]
[Black "Jukic, Zdenko"]
[Result "1-0"]
[ECO "A13"]
[WhiteElo "2261"]
[BlackElo "2319"]
[Annotator "NA"]
[PlyCount "43"]
[EventDate "2018.09.08"]
[EventType "team-tourn"]
[EventCountry "CRO"]
[SourceTitle "playchess.com"]
[Source "ChessBase"]
[SourceQuality "1"]
[TimeControl "40/5400+30:1800+30"]

1. Nf3 {[%emt 0:00:30]} Nf6 {[%emt 0:00:30]} 2. c4 {[%emt 0:00:00]} e6 {[%emt 0:01:30]} 3. g3 {[%emt 0:02:00]} d5 {[%emt 0:00:30]} 4. Bg2 {[%emt 0:00:30]} dxc4 {[%emt 0:01:30] LiveBook: 3442 Games} 5. Qa4+ {[%emt 0:02:30]} Qd7 {[%emt 0:03:30]} 6. Qxc4 {[%emt 0:02:30]} Qc6 {[%emt 0:00:30]} 7. Na3 {[%emt 0:09:30]} Bxa3 {[%emt 0:04:30]} 8. Qxc6+ {[%emt 0:00:00]} Nxc6 {[%emt 0:00:30]} 9. bxa3 {[%emt 0:00:00]} Nd5 {[%emt 0:00:30]} 10. d3 {[%emt 0:05:30]} f6 {[%emt 0:02:30]} 11. Bd2 {[%emt 0:02:30]} Nce7 {[%emt 0:22:30]} 12. Rc1 {[%emt 0:05:30]} c6 {[%emt 0:01:30]} 13. Nd4 {[%emt 0:00:30]} e5 {[%emt 0:01:30]} 14. Nb3 {[%emt 0:00:00]} b6 {[%emt 0:15:30]} 15. O-O {[%emt 0:13:00]} Bb7 $14 {[%emt 0:04:30]} 16. Rb1 {[%emt 0:03:30]} O-O-O {[%emt 0:07:30]} 17. Rb2 {[%emt 0:00:30]} c5 {[%emt 0:18:17]} 18. e4 {[%emt 0:12:30]} Nc7 {[%emt 0:00:41]} 19. Bh3+ {[%emt 0:00:30]} Kb8 {[%emt 0:00:13]} 20. Nxc5 {[%emt 0:00:30]} Bc6 {[%emt 0:01:37]} 21. Rc1 {[%emt 0:05:30]} Nb5 {[%emt 0:05:17]} 22. Ne6 {[%emt 0:06:30]} 1-0

[Event "27th CRO-chT 1A-Men 2018"]
[Site "Biograd"]
[Date "2018.09.13"]
[Round "6.29"]
[White "Zovko, Mario"]
[Black "Brnas, Augustin"]
[Result "1/2-1/2"]
[ECO "C49"]
[WhiteElo "2328"]
[BlackElo "2190"]
[Annotator "NA"]
[PlyCount "94"]
[EventDate "2018.09.08"]
[EventType "team-tourn"]
[EventCountry "CRO"]
[SourceTitle "playchess.com"]
[Source "ChessBase"]
[SourceQuality "1"]
[TimeControl "40/5400+30:1800+30"]

1. e4 {[%emt 0:01:30]} e5 {[%emt 0:00:30]} 2. Nf3 {[%emt 0:00:30]} Nc6 {[%emt 0:00:30]} 3. Nc3 {[%emt 0:00:30]} Nf6 {[%emt 0:00:30]} 4. Bb5 {[%emt 0:00:00]} Bb4 {[%emt 0:08:30]} 5. O-O {[%emt 0:01:00]} O-O {[%emt 0:00:00]} 6. d3 {[%emt 0:00:00]} d6 {[%emt 0:06:00]} 7. Ne2 {[%emt 0:01:00]} Ne7 {[%emt 0:00:30]} 8. c3 {[%emt 0:00:00]} Ba5 {[%emt 0:00:30]} 9. Ng3 {[%emt 0:00:00]} Ng6 {[%emt 0:00:30]} 10. Re1 {[%emt 0:00:30] C49: Four Knights: 4 Bb5 Bb4} c6 {[%emt 0:01:30]} (10... a6 11. Ba4 b5 12. Bb3 c5 13. a4 Bd7 14. h3 b4 15. c4 Qc8 16. Be3 Ne8 17. Qd2 Bd8 {½-½ (31) Wang,H (2710)-Yu,Y (2759) Hangzhou 2018}) 11. Ba4 {[%emt 0:00:30]} Bb6 {[%emt 0:03:30]} 12. h3 {[%emt 0:02:30]} Be6 {[%emt 0:03:30]} 13. d4 {[%emt 0:01:30]} Qc7 $146 {[%emt 0:04:30]} ({Predecessor:} 13... exd4 14. Nxd4 d5 15. exd5 Bxd5 16. Ngf5 Qd7 {½-½ (31) Sasikiran,K (2632)-Kvetny,M (2389) Cappelle-la-Grande 2016}) 14. Bg5 {[%emt 0:02:30]} Ne8 {[%emt 0:00:30]} 15. Bc2 {[%emt 0:06:30]} f6 {[%emt 0:04:30]} 16. Be3 {[%emt 0:04:30]} Qf7 {[%emt 0:05:30]} 17. Bb3 {[%emt 0:06:30]} (17. a4 $16) 17... Nc7 {[%emt 0:03:30]} 18. Nf5 {[%emt 0:04:30]} Rad8 {[%emt 0:00:30]} 19. Qc2 {[%emt 0:01:30]} Ne7 {[%emt 0:04:30]} 20. N3h4 {[%emt 0:03:30]} Kh8 {[%emt 0:05:30]} 21. Nxe7 {[%emt 0:04:30]} Qxe7 {[%emt 0:00:00]} 22. a4 {[%emt 0:03:30]} Qf7 {[%emt 0:15:00]} 23. Bxe6 {[%emt 0:11:30]} Nxe6 {[%emt 0:00:30]} 24. Nf3 {[%emt 0:03:30]} exd4 {[%emt 0:00:30]} 25. cxd4 {[%emt 0:00:30]} d5 {[%emt 0:00:30]} 26. e5 {[%emt 0:01:30]} f5 {[%emt 0:02:30]} 27. a5 {[%emt 0:01:30]} Bc7 {[%emt 0:00:30]} 28. Ng5 {[%emt 0:00:30]} Nxg5 {[%emt 0:00:00]} 29. Bxg5 {[%emt 0:00:30]} Rde8 {[%emt 0:00:00]} 30. a6 {[%emt 0:07:30]} Re6 {[%emt 0:00:30]} 31. axb7 {[%emt 0:01:30]} Bb6 {[%emt 0:00:30]} 32. Rad1 {[%emt 0:02:30]} Qxb7 {[%emt 0:01:30]} 33. Rd3 {[%emt 0:01:30]} Qf7 {[%emt 0:02:30]} 34. Bd2 {[%emt 0:01:30]} Qe7 {[%emt 0:04:30]} 35. Qa4 {[%emt 0:03:30]} Re8 {[%emt 0:03:30]} 36. Rc1 {[%emt 0:01:30]} Qh4 {[%emt 0:00:30]} 37. f4 {[%emt 0:05:37]} Rc8 {[%emt 0:00:30]} 38. Kh2 {[%emt 0:02:04]} Qf2 {[%emt 0:00:37]} 39. Qb3 {[%emt 0:10:46]} Rg6 {[%emt 0:00:45] [#]} 40. Qxd5 $11 {[%emt 0:00:00]} Qe2 {[%emt 0:00:00]} 41. Qf3 {[%emt 0:06:03]} Rxg2+ {[%emt 0:04:38]} 42. Qxg2 {[%emt 0:00:30]} Qxd3 {[%emt 0:00:00]} 43. d5 {[%emt 0:00:30]} Be3 {[%emt 0:01:00]} 44. Bxe3 {[%emt 0:00:30]} Qxe3 {[%emt 0:00:30]} 45. Rxc6 {[%emt 0:00:30]} Qxf4+ {[%emt 0:00:00]} 46. Qg3 {[%emt 0:01:30]} Qd2+ {[%emt 0:00:00]} 47. Qg2 {[%emt 0:00:00]} Qf4+ {[%emt 0:00:30]} 1/2-1/2

[Event "27th CRO-chT 1A-Men 2018"]
[Site "Biograd"]
[Date "2018.09.13"]
[Round "6.30"]
[White "Ivankovic, Ivo"]
[Black "Cosic, Marin"]
[Result "1/2-1/2"]
[ECO "D13"]
[WhiteElo "2110"]
[BlackElo "2227"]
[Annotator "NA"]
[PlyCount "62"]
[EventDate "2018.09.08"]
[EventType "team-tourn"]
[EventCountry "CRO"]
[SourceTitle "playchess.com"]
[Source "ChessBase"]
[SourceQuality "1"]
[TimeControl "40/5400+30:1800+30"]

1. c4 {[%emt 0:00:30]} c6 {[%emt 0:03:30]} 2. d4 {[%emt 0:00:30]} d5 {[%emt 0:00:30]} 3. cxd5 {[%emt 0:00:30]} cxd5 {[%emt 0:00:30]} 4. Nf3 {[%emt 0:01:30]} Nf6 {[%emt 0:00:00] LiveBook: 4752 Games} 5. Bf4 {[%emt 0:00:30]} Nc6 {[%emt 0:01:00]} 6. e3 {[%emt 0:01:30] D13: Damengambit (Slawische Verteidigung, Abtauschvariante)} e6 {[%emt 0:02:30]} 7. Nbd2 {[%emt 0:02:30]} Be7 {[%emt 0:02:30]} (7... Qb6 8. Rb1 Nh5 9. Bg5 h6 10. Bh4 g5 11. Bg3 g4 12. Ne5 Nxg3 13. hxg3 Nxe5 14. dxe5 h5 {½-½ (30) Artemiev,V (2701)-Adhiban,B (2661) Sharjah 2018}) 8. Bd3 {[%emt 0:00:30]} Bd7 {[%emt 0:13:30]} 9. Rc1 $146 {[%emt 0:07:30]} ({Vorgänger:} 9. O-O O-O 10. a3 Rc8 11. Rc1 Nh5 12. Be5 f6 13. Bg3 Nxg3 14. hxg3 Kh8 15. Nh4 {0-1 (67) Kartsev,A (1693)-Zeldin,V (1888) Duisburg 2006}) 9... Qb6 {[%emt 0:07:30]} 10. Qb3 {[%emt 0:01:30]} Qxb3 {[%emt 0:08:30]} 11. Nxb3 {[%emt 0:00:30]} Nh5 {[%emt 0:03:30]} 12. Be5 {[%emt 0:02:30]} f6 {[%emt 0:01:30]} 13. Bc7 {[%emt 0:12:30]} Rc8 {[%emt 0:01:30]} 14. Bg3 {[%emt 0:01:30]} O-O {[%emt 0:05:30]} 15. O-O {[%emt 0:03:30]} Nxg3 {[%emt 0:04:30]} 16. hxg3 {[%emt 0:06:30]} Nb4 {[%emt 0:04:30]} 17. Bb1 {[%emt 0:01:30]} Bb5 {[%emt 0:01:30]} 18. Rxc8 {[%emt 0:00:30]} Rxc8 {[%emt 0:00:30]} 19. Rc1 {[%emt 0:00:30]} Rxc1+ {[%emt 0:07:30]} 20. Nxc1 {[%emt 0:00:30]} g6 {[%emt 0:01:30]} 21. a3 {[%emt 0:01:30]} Nc6 {[%emt 0:00:30]} 22. Bd3 {[%emt 0:06:30]} Ba4 $15 {[%emt 0:01:30]} 23. Ne2 {[%emt 0:06:30]} Na5 {[%emt 0:02:30]} 24. Nc3 {[%emt 0:00:30]} Bd7 {[%emt 0:00:30]} 25. Nd2 {[%emt 0:01:30]} Kf7 {[%emt 0:02:30]} 26. b4 {[%emt 0:00:30]} Nc6 {[%emt 0:00:30]} 27. Nb3 {[%emt 0:00:30]} b6 {[%emt 0:12:41]} 28. Kf1 {[%emt 0:01:30]} Ke8 {[%emt 0:00:57]} 29. Ke1 {[%emt 0:00:30]} Nd8 {[%emt 0:02:02]} 30. Nb5 {[%emt 0:04:30]} Nc6 {[%emt 0:01:25]} 31. Nc3 {[%emt 0:01:30]} Bd6 {[%emt 0:00:39]} 1/2-1/2